[Event "26th Hit Open-A 2022"]
[Site "Nova Gorica"]
[Date "2022.09.18"]
[Round "5.24"]
[White "Nyysti, Sampsa"]
[Black "Teo, Hong Ming"]
[Result "0-1"]
[ECO "B62"]
[WhiteElo "2363"]
[BlackElo "2013"]
[Annotator "ChessBase"]
[PlyCount "36"]
[EventDate "2022.09.16"]
[EventType "swiss"]
[EventCountry "SLO"]
[SourceTitle "playchess.com"]
[Source "ChessBase"]
[SourceQuality "1"]
[TimeControl "5400+30"]

1. e4 {[%emt 0:00:02]} c5 {[%emt 0:06:11]} 2. Nf3 {[%emt 0:00:02]} d6 {[%emt 0:01:00]} 3. d4 {[%emt 0:00:05]} cxd4 {[%emt 0:00:06]} 4. Nxd4 {[%emt 0:00:04]} Nf6 {[%emt 0:00:10]} 5. Nc3 {[%emt 0:00:05]} Nc6 {[%emt 0:00:08]} 6. Bg5 {[%emt 0:00:32]} e6 {[%emt 0:00:09]} 7. Qd3 {[%emt 0:00:51]} Be7 {[%emt 0:03:13]} 8. O-O-O {[%emt 0:02:59]} Qb6 {[%emt 0:17:59]} 9. Qb5 {[%emt 0:10:03]} Qc7 {[%emt 0:10:51]} 10. Qc4 {[%emt 0:13:03]} a6 {[%emt 0:01:51]} 11. Bd3 {[%emt 0:24:10]} Bd7 {[%emt 0:01:49]} 12. Nxc6 {[%emt 0:00:06]} Bxc6 {[%emt 0:01:15]} 13. f4 {[%emt 0:09:18]} b5 {[%emt 0:12:56]} 14. Qd4 {[%emt 0:00:18]} h6 {[%emt 0:03:35]} 15. Bh4 {[%emt 0:03:33]} b4 {[%emt 0:00:47]} 16. Qxb4 {[%emt 0:04:23]} d5 {[%emt 0:02:07]} 17. Qxe7+ {[%emt 0:01:46]} Kxe7 {[%emt 0:01:08]} 18. e5 {[%emt 0:00:10]} Kf8 {[%emt 0:00:24]} 0-1

[Event "26th Hit Open-A 2022"]
[Site "Nova Gorica"]
[Date "2022.09.18"]
[Round "5.25"]
[White "Goroshkov, Maksym"]
[Black "Di Lascio, Savino"]
[Result "1-0"]
[ECO "B16"]
[WhiteElo "2315"]
[BlackElo "1793"]
[Annotator "ChessBase"]
[PlyCount "39"]
[EventDate "2022.09.16"]
[EventType "swiss"]
[EventCountry "SLO"]
[SourceTitle "playchess.com"]
[Source "ChessBase"]
[SourceQuality "1"]
[TimeControl "5400+30"]

1. e4 {[%emt 0:00:15]} c6 {[%emt 0:00:11]} 2. d4 {[%emt 0:00:16]} d5 {[%emt 0:00:08]} 3. Nc3 {[%emt 0:00:05]} dxe4 {[%emt 0:00:09]} 4. Nxe4 {[%emt 0:00:04]} Nf6 {[%emt 0:00:09]} 5. Nxf6+ {[%emt 0:00:27]} gxf6 {[%emt 0:00:13]} 6. c3 {[%emt 0:00:58]} Qd5 {[%emt 0:00:32]} 7. Ne2 {[%emt 0:01:24]} e5 {[%emt 0:03:42]} 8. Be3 {[%emt 0:00:55]} Na6 {[%emt 0:01:28]} 9. Ng3 {[%emt 0:02:27]} Nc7 {[%emt 0:00:28]} 10. Nh5 {[%emt 0:07:20]} Be7 {[%emt 0:02:07]} 11. Ng7+ {[%emt 0:03:22]} Kd8 {[%emt 0:00:35]} 12. dxe5 {[%emt 0:00:24]} Bd7 {[%emt 0:04:06]} 13. exf6 {[%emt 0:01:30]} Bxf6 {[%emt 0:00:42]} 14. Nh5 {[%emt 0:00:10]} Ne8 {[%emt 0:02:46]} 15. Qxd5 {[%emt 0:00:34]} cxd5 {[%emt 0:00:10]} 16. O-O-O {[%emt 0:01:07]} Be6 {[%emt 0:00:07]} 17. Bc4 {[%emt 0:02:13]} Rg8 {[%emt 0:02:42]} 18. Bxd5 {[%emt 0:00:14]} Bxd5 {[%emt 0:00:21]} 19. Rxd5+ {[%emt 0:00:06]} Ke7 {[%emt 0:00:42]} 20. Bc5+ {[%emt 0:00:12]} 1-0

[Event "26th Hit Open-A 2022"]
[Site "Nova Gorica"]
[Date "2022.09.18"]
[Round "5.26"]
[White "Callsen, Niklas"]
[Black "Chkhaidze, Nikoloz"]
[Result "1/2-1/2"]
[ECO "B48"]
[WhiteElo "2079"]
[BlackElo "2239"]
[Annotator "TA"]
[PlyCount "119"]
[EventDate "2022.09.16"]
[EventType "swiss"]
[EventCountry "SLO"]
[SourceTitle "playchess.com"]
[Source "ChessBase"]
[SourceQuality "1"]
[TimeControl "5400+30"]

{[%evp 11,119,33,45,33,27,32,34,24,33,13,44,22,32,-18,-13,-1,-12,0,0,-26,16,24,27,16,23,29,25,19,18,26,30,24,24,18,34,41,54,0,6,-56,66,11,52,46,294,280,279,6,97,98,97,95,122,20,26,12,17,12,17,8,8,8,8,8,8,0,17,17,17,17,23,0,0,0,25,23,33,0,0,0,0,0,0,0,0,0,0,0,0,0,0,0,0,0,0,0,0,0,0,0,0,0,0,0,0,0,0,0,0,0]} 1. e4 {[%emt 0:00:03]} c5 {[%emt 0:00:54]} 2. Nf3 {[%emt 0:00:09]} e6 {[%emt 0:00:07]} 3. d4 {[%emt 0:00:06]} cxd4 {[%emt 0:00:03]} 4. Nxd4 {[%emt 0:00:08]} Nc6 {[%emt 0:00:03]} 5. Nc3 {[%emt 0:00:10]} Qc7 {[%emt 0:00:02]} 6. Be3 {[%emt 0:00:27]} a6 {[%emt 0:00:06]} 7. Qf3 {[%emt 0:00:14] B48: Sicilian: Taimanov: 5 Nc3 Qc7 6 Be3 a6 without Be2.} Nf6 {[%emt 0:00:08][%cal Of8a3]} 8. O-O-O {[%emt 0:00:22]} Ne5 {[%emt 0:01:50]} 9. Qg3 {[%emt 0:00:08] White is slightly better.} b5 {[%emt 0:00:36]} 10. a3 {[%emt 0:00:09]} Bb7 {[%emt 0:04:00] [#]} 11. Bxb5 $1 {[%emt 0:00:11] Ba4 is the strong threat.} Rc8 $1 {[%emt 0:09:29]} (11... axb5 12. Ndxb5 Qb8 13. Bb6 $16) (11... Nxe4 12. Nxe4 Bxe4 {[#]} 13. Bxd7+ $1 Qxd7 14. Qxe5 $16) 12. Ba4 {[%emt 0:00:07]} (12. Bf4 Nh5 13. Nxe6 (13. Bxe5 $2 Nxg3 14. Bxc7 Nxh1 $19) 13... fxe6 14. Bxe5 Nxg3 $17) ({White should play} 12. Be2 $14) 12... Nxe4 $11 {[%emt 0:05:50]} 13. Nxe4 {[%emt 0:00:12]} Bxe4 {[%emt 0:00:03]} 14. Bf4 {[%emt 0:00:44]} Qa5 {[%emt 0:05:47]} 15. b3 {[%emt 0:00:13]} Rc3 {[%emt 0:37:29]} (15... Bxa3+ 16. Kb1 Nc6 17. Qxg7 $16) (15... Ng4 $5) 16. Bd2 $1 {[%emt 0:00:13][%cal Bf4d2,Bd2a5,Ba5c7][%mdl 32] Dancing on a razor blade.} Rxg3 {[%emt 0:04:13]} 17. Bxa5 {[%emt 0:00:13] [#]} Bxa3+ $146 {[%emt 0:05:16]} ({Predecessor:} 17... Rxg2 18. Rhe1 f5 19. Bc7 Nc6 20. Nxc6 dxc6 21. Bxc6+ Bxc6 22. Rxe6+ Kf7 23. Rxc6 Bxa3+ {½-½ (31) Kosakowski,J (2432)-Sismeiro,M (2222) Maia 2022}) 18. Kb1 {[%emt 0:00:23]} Rxg2 {[%emt 0:00:05] White must now prevent ...0-0.} 19. Rhe1 {[%emt 0:02:56]} f5 {[%emt 0:06:24]} 20. Bc7 {[%emt 0:01:41]} Nf3 {[%emt 0:03:59]} 21. Nxf3 {[%emt 0:12:22]} Bxf3 {[%emt 0:00:07]} 22. Bxd7+ {[%emt 0:02:53]} Kf7 {[%emt 0:05:52]} 23. Bxe6+ {[%emt 0:03:06]} Kg6 {[%emt 0:00:13]} 24. Rd4 {[%emt 0:37:07]} (24. Rd7 $14) 24... Be4 {[%emt 0:04:45]} 25. Ra4 {[%emt 0:09:04]} (25. Bd5 $11 Bxd5 26. Rxd5) 25... Re8 {[%emt 0:02:39]} (25... Bc5 $15) 26. Rxa6 {[%emt 0:05:03]} (26. Rxa3 Rxe6 27. Re2 Kh5 $15) (26. Bd5 $14 Re7 27. Bd8 (27. Bxe4 fxe4 28. Bd8 Rd7 $16) (27. Rexe4 Rg1+ 28. Ka2 fxe4 $14) (27. Rxa3 Rxc7 28. Bxe4 fxe4 $11) (27. Rxa6+ Kh5 $16)) 26... Kg5 {[%emt 0:00:03]} (26... Ra8 $5 {[%cal Ra8a6]} 27. Rxa8 Bxa8 $11) 27. Bg3 {[%emt 0:06:11]} Bb4 $2 {[%emt 0:00:05] [#]} (27... g6 $1 $14) 28. Rxe4 $1 {[%emt 0:10:14][%mdl 512]} fxe4 {[%emt 0:02:36]} (28... Rg1+ 29. Kb2) 29. c3 $2 {[%emt 0:04:20]} (29. h4+ $18 Kh5 30. Bf7+ Kg4 31. Bxe8) 29... Rxe6 {[%emt 0:01:33]} 30. Rxe6 $16 {[%emt 0:00:11]} Bxc3 {[%emt 0:00:08]} 31. Rxe4 $11 {[%emt 0:00:49][%mdl 4096] Endgame Strongly threatening b4. KRB-KRB} Kf5 {[%emt 0:00:37]} 32. Re8 {[%emt 0:01:37]} (32. Rh4 $16) 32... h5 {[%emt 0:00:31]} 33. h4 {[%emt 0:02:24]} g5 {[%emt 0:00:02]} 34. Rf8+ {[%emt 0:01:23]} Bf6 {[%emt 0:01:06]} 35. hxg5 {[%emt 0:01:20]} Kxg5 {[%emt 0:00:01]} 36. Kc2 {[%emt 0:00:34]} Kg6 {[%emt 0:00:14] [#]} 37. Bh4 $1 {[%emt 0:00:39]} Bg7 {[%emt 0:00:31]} 38. Rc8 {[%emt 0:00:35]} Rg4 {[%emt 0:01:01]} 39. Rc6+ {[%emt 0:00:10]} Kf5 {[%emt 0:00:29]} 40. Rc5+ {[%emt 0:00:07]} Kg6 {[%emt 0:00:10]} 41. Rc6+ {[%emt 0:01:23]} (41. Rc4 $5 {[%cal Rc4g4]}) 41... Kf5 {[%emt 0:00:04]} 42. Rc5+ {[%emt 0:00:22]} Kg6 {[%emt 0:00:02]} 43. Rc4 {[%emt 0:00:20]} Bd4 {[%emt 0:02:00]} 44. Kd3 {[%emt 0:00:50]} (44. Bg3 $5 {[%cal Rc2d3]} Kf5 45. Kd3 $14) 44... Rxh4 {[%emt 0:00:14] The position is equal.} 45. Rxd4 {[%emt 0:00:06] KR-KR} Rh3+ {[%emt 0:00:22]} 46. Kc4 {[%emt 0:00:06]} Rf3 {[%emt 0:00:20]} 47. Rd8 {[%emt 0:01:11]} h4 {[%emt 0:01:06]} 48. Rh8 {[%emt 0:00:25]} h3 {[%emt 0:00:30]} 49. b4 {[%emt 0:00:10]} Kg5 {[%emt 0:00:14]} 50. b5 {[%emt 0:00:13] And now b6 would win.} Rf4+ {[%emt 0:00:49]} 51. Kc5 {[%emt 0:00:28]} Kg4 {[%emt 0:00:39]} 52. Rg8+ {[%emt 0:00:26]} Kh4 {[%emt 0:00:20] aiming for ...Rf5+.} 53. b6 {[%emt 0:01:04] White threatens b7 and mate.} Rxf2 {[%emt 0:00:07]} 54. b7 {[%emt 0:00:30]} Rb2 {[%emt 0:00:04]} 55. b8=Q {[%emt 0:00:34]} Rxb8 {[%emt 0:00:03]} 56. Rxb8 {[%emt 0:00:06]} h2 {[%emt 0:00:02]} 57. Kd4 {[%emt 0:00:15] Intending Ke3 and mate.} Kg3 {[%emt 0:00:06]} 58. Rb3+ {[%emt 0:01:19]} Kg2 {[%emt 0:00:41]} 59. Rb2+ {[%emt 0:00:07]} Kg3 {[%emt 0:00:46]} 60. Rxh2 {[%emt 0:00:32] Weighted Error Value: White=0.21 (precise) /Black=0.14 (very precise)} 1/2-1/2

[Event "26th Hit Open-A 2022"]
[Site "Nova Gorica"]
[Date "2022.09.18"]
[Round "5.27"]
[White "Bajo, Tin"]
[Black "Bauer, Thomas"]
[Result "0-1"]
[ECO "B40"]
[WhiteElo "1999"]
[BlackElo "2200"]
[Annotator "TA"]
[PlyCount "130"]
[EventDate "2022.09.16"]
[EventType "swiss"]
[EventCountry "SLO"]
[SourceTitle "playchess.com"]
[Source "ChessBase"]
[SourceQuality "1"]
[TimeControl "5400+30"]

{[%evp 9,130,9,66,0,8,0,125,75,137,58,52,46,55,50,68,67,81,58,79,0,38,30,41,18,550,22,83,12,20,7,0,-57,-42,-36,-38,-44,-55,-56,-38,-42,-42,-79,-72,-83,-88,-93,-85,-96,-66,-95,-79,-85,-56,-68,-27,-72,-60,-147,-140,-153,-153,-205,-221,-210,-212,-214,-213,-218,-214,-212,-206,-208,-207,-200,-210,-258,-257,-255,-248,-234,-218,-255,-226,-260,-255,-309,-183,-379,-357,-561,-572,-591,-583,-575,-568,-593,-543,-749,-733,-625,-617,-953,-939,-3828,-5222,-2153,-2104,-29985,-29982,-29984,-29987,-29987,-29984,-29986,-4902,-5800,-743,-1154,0,-2290,-2303,-29993,-29993]} 1. e4 {[%emt 0:01:12][%cal Be2e4,Be4e5][%mdl 32]} c5 {[%emt 0:00:05]} 2. Nf3 {[%emt 0:00:21]} e6 {[%emt 0:00:02]} 3. g3 {[%emt 0:00:12]} Nf6 {[%emt 0:03:16]} 4. e5 {[%emt 0:02:33]} Nd5 {[%emt 0:00:43]} 5. c4 {[%emt 0:00:30]} Nb6 {[%emt 0:01:26]} ({Black should play} 5... Ne7 $11) 6. b3 {[%emt 0:06:41] B40: Sicilian: 2...e6, Unusual lines.} (6. b4 $14) 6... d5 $11 {[%emt 0:12:28]} 7. exd6 {[%emt 0:01:30] [#]} Qf6 $146 {[%emt 0:00:02]} (7... Bxd6 $11 {remains equal.} 8. Bg2 O-O) ({Predecessor:} 7... Bxd6 8. Bb2 O-O 9. Bg2 Nc6 10. d4 cxd4 11. Nxd4 Nxd4 12. Qxd4 e5 13. Qd2 Qe7 {½-½ (32) Gottstein,C (2113)-Martinez,S (1881) Chess.com INT 2021}) 8. Nc3 {[%emt 0:01:38]} (8. d4 $142) 8... Bxd6 {[%emt 0:00:03] [#]} (8... Bd7 $142) 9. Bb2 {[%emt 0:04:01]} (9. Ne4 $1 $16 {[%cal Re4f6]} Qe7 10. d4) 9... O-O $14 {[%emt 0:01:34]} 10. Bg2 {[%emt 0:01:43]} Nc6 {[%emt 0:03:38]} 11. O-O {[%emt 0:04:03][%cal Od2d4]} e5 {[%emt 0:01:40] Prevents d4.} 12. Ne4 {[%emt 0:00:30]} Qd8 {[%emt 0:00:30]} 13. Qe2 {[%emt 0:00:30]} f6 {[%emt 0:00:30] [#]} 14. d3 {[%emt 0:00:30]} (14. Qe3 $1 $16) 14... Bg4 {[%emt 0:00:30]} 15. Qe3 {[%emt 0:15:20]} Rc8 {[%emt 0:14:51]} 16. h3 {[%emt 0:09:39]} (16. Ba3 $5 {[%cal Re4d6]}) 16... Bd7 {[%emt 0:05:02][%mdl 8192]} (16... Bxf3 $11 {and Black stays safe.} 17. Qxf3 (17. Bxf3 Nd4 $11) 17... Rf7) 17. g4 $2 {[%emt 0:00:31]} (17. Nxd6 $18 Rc7 18. Qxc5) 17... Be8 {[%emt 0:03:12]} (17... Be7 $11) 18. Rad1 {[%emt 0:02:21]} (18. g5 $16) 18... Nd4 $1 $11 {[%emt 0:02:27]} 19. Nxd6 {[%emt 0:02:39]} Qxd6 {[%emt 0:01:02]} 20. Bxd4 {[%emt 0:00:39]} (20. Nxd4 $11 exd4 21. Qg3 Qxg3 22. fxg3) 20... cxd4 $15 {[%emt 0:09:32]} 21. Qe2 {[%emt 0:01:23]} Bc6 {[%emt 0:01:39]} 22. Rde1 {[%emt 0:03:53]} Nd7 {[%emt 0:01:08]} 23. Nh4 {[%emt 0:04:15]} g6 {[%emt 0:01:58] Prevents Nf5.} 24. Bxc6 {[%emt 0:01:00]} Rxc6 {[%emt 0:03:15]} 25. Nf3 {[%emt 0:04:50]} Ra6 {[%emt 0:02:03]} 26. g5 {[%emt 0:00:30]} fxg5 {[%emt 0:00:30]} 27. Nxg5 {[%emt 0:00:30][%cal Of2f4]} Rf4 {[%emt 0:00:30][%cal Bf8f4,Bf4h4,Bh4h5][%mdl 32]} 28. f3 {[%emt 0:00:30]} Qa3 {[%emt 0:00:30]} 29. Rf2 {[%emt 0:00:30]} Qe7 {[%emt 0:00:30]} 30. Rg2 {[%emt 0:00:30]} Qf6 {[%emt 0:00:30]} 31. Rf1 {[%emt 0:00:30]} Qf5 {[%emt 0:00:30] Black wants to play ...Nc5.} 32. Kh2 {[%emt 0:00:30]} Rh4 {[%emt 0:00:30] Threatens to win with ...Nc5.} 33. Qf2 {[%emt 0:00:30]} (33. Qe1 $1 $15 Rh5 34. f4) 33... Rh5 $36 {[%emt 0:00:30][%mdl 2048] Black is on the roll. Black is more active.} 34. Qg3 {[%emt 0:27:10]} Nc5 {[%emt 0:15:40][%cal Bd7c5,Bc5d3,Bd3f4][%mdl 32]} 35. Ne4 {[%emt 0:00:30]} (35. Rd1 $17) 35... Nxd3 $19 {[%emt 0:01:16]} 36. Qg4 {[%emt 0:00:19]} Nf4 {[%emt 0:01:34]} 37. Qxf5 {[%emt 0:01:32]} Rxf5 {[%emt 0:00:07]} 38. Rd2 {[%emt 0:00:04]} Rh5 {[%emt 0:02:22]} 39. Nf2 {[%emt 0:00:18]} Rf6 {[%emt 0:01:10]} 40. Kg3 {[%emt 0:02:02]} Rff5 {[%emt 0:03:44] White must now prevent ...Rfg5+.} 41. Rh1 {[%emt 0:01:20]} Ne6 {[%emt 0:03:12]} 42. Ne4 {[%emt 0:00:20]} Ng5 {[%emt 0:00:35]} 43. Nxg5 {[%emt 0:00:30]} Rfxg5+ {[%emt 0:00:30][%mdl 4096] Endgame KRR-KRR} 44. Kf2 {[%emt 0:00:38]} Rh4 {[%emt 0:00:34]} 45. Re2 {[%emt 0:00:45]} Rf5 {[%emt 0:00:22]} 46. Kg3 {[%emt 0:00:45]} Rhf4 {[%emt 0:00:31]} 47. Rf1 {[%emt 0:00:27][%cal Oe2e5]} g5 {[%emt 0:00:35]} (47... h5 $142 48. b4 Kf7) 48. Kg2 $2 {[%emt 0:00:36]} (48. Rfe1 {was forced.}) 48... Kf7 {[%emt 0:00:54]} 49. Rfe1 {[%emt 0:00:37]} (49. Rd1 $142) 49... Kf6 {[%emt 0:00:30]} 50. Rf1 {[%emt 0:00:21]} h5 {[%emt 0:00:14][%cal Bh7h5,Bh5h4][%mdl 32]} 51. Kg3 {[%emt 0:00:44]} Ke6 {[%emt 0:01:43]} 52. Rd2 {[%emt 0:00:27]} Rf7 {[%emt 0:00:21]} 53. b4 {[%emt 0:00:38]} h4+ {[%emt 0:01:44]} 54. Kg2 {[%emt 0:00:09]} e4 {[%emt 0:00:19][%cal Be5e4,Be4e3][%mdl 32] ...Ke5 is the strong threat.} 55. Re1 {[%emt 0:00:42]} e3 {[%emt 0:00:30]} 56. Rd3 {[%emt 0:00:19]} Rxf3 {[%emt 0:00:50]} 57. Rxd4 {[%emt 0:00:18]} Rg3+ {[%emt 0:00:12]} 58. Kh2 {[%emt 0:00:19]} Rf2+ {[%emt 0:00:07]} 59. Kh1 {[%emt 0:00:02]} Rxh3+ {[%emt 0:00:12]} 60. Kg1 {[%emt 0:00:05]} Rg3+ {[%emt 0:00:04]} 61. Kh1 {[%emt 0:00:10]} Ke5 {[%emt 0:00:52]} (61... Kf5 $142 62. b5 e2 63. Rxe2 Rxe2 64. c5 Rgg2 65. Rd5+ Kg4 66. Re5 h3 67. Rxe2 Rxe2 68. Kg1 h2+ 69. Kh1 Kg3 70. c6 Re1#) 62. Rd7 {[%emt 0:00:30]} Rh3+ {[%emt 0:00:05]} (62... Ke4 $142 63. Re7+ Kd3 64. Rd7+ Kc2) 63. Kg1 {[%emt 0:00:05]} Rg3+ {[%emt 0:00:02]} (63... Rff3 $142 64. Re2 Rhg3+ 65. Kh1 g4) 64. Kh1 {[%emt 0:00:30]} Kf4 {[%emt 0:00:30] ( -> ...Kg4)} 65. Rd5 {[%emt 0:00:30]} Kf3 {[%emt 0:00:30] Black used his chance.  Weighted Error Value: White=0.81/Black=0.54} 0-1

[Event "26th Hit Open-A 2022"]
[Site "Nova Gorica"]
[Date "2022.09.18"]
[Round "5.28"]
[White "Saypuri Srithan"]
[Black "Vidmar, Klara"]
[Result "1-0"]
[ECO "B31"]
[WhiteElo "2199"]
[BlackElo "1788"]
[Annotator "TA"]
[PlyCount "55"]
[EventDate "2022.09.16"]
[EventType "swiss"]
[EventCountry "SLO"]
[SourceTitle "playchess.com"]
[Source "ChessBase"]
[SourceQuality "1"]
[TimeControl "5400+30"]

{[%evp 15,55,19,31,27,27,17,30,30,18,22,79,52,52,52,72,73,66,46,57,41,47,44,47,38,38,37,121,142,148,137,135,129,128,116,151,157,439,435,466,487,471,419]} 1. e4 {[%emt 0:00:18]} c5 {[%emt 0:00:08]} 2. Nf3 {[%emt 0:00:04]} Nc6 {[%emt 0:00:07]} 3. Bb5 {[%emt 0:00:04]} g6 {[%emt 0:00:10]} 4. O-O {[%emt 0:00:04]} Bg7 {[%emt 0:00:08]} 5. c3 {[%emt 0:00:04]} Nf6 {[%emt 0:00:34]} 6. Re1 {[%emt 0:00:06]} O-O {[%emt 0:00:34]} 7. h3 {[%emt 0:00:04]} a6 {[%emt 0:05:57]} 8. Bxc6 {[%emt 0:00:55]} dxc6 {[%emt 0:00:21]} 9. d3 {[%emt 0:08:36] B31: Sicilian: 2...Nc6 3 Bb5 g6.} Qc7 {[%emt 0:09:21]} 10. Qc2 {[%emt 0:04:05]} e5 {[%emt 0:04:27]} 11. Be3 {[%emt 0:07:10] White has an edge.} b6 {[%emt 0:04:23]} 12. Nbd2 {[%emt 0:00:43] [#]} Kh8 $146 {[%emt 0:03:54]} (12... Rd8 $11 {keeps the balance.}) ({Predecessor:} 12... Be6 13. d4 cxd4 14. cxd4 exd4 15. Nxd4 Bd7 16. Rac1 Rfc8 17. N4f3 Be8 18. Bd4 Nh5 19. Bxg7 Nxg7 {1-0 (46) Cole,S (1455)-Stadler,P (1422) LSS email 2015}) 13. d4 {[%emt 0:06:25]} cxd4 {[%emt 0:01:12]} 14. cxd4 {[%emt 0:00:05]} exd4 {[%emt 0:01:21]} 15. Bxd4 {[%emt 0:00:05]} Nh5 {[%emt 0:11:18]} 16. Qc3 {[%emt 0:04:26] White is more active.} c5 {[%emt 0:07:13]} 17. Be5 {[%emt 0:07:27]} Bxe5 {[%emt 0:01:41]} 18. Nxe5 {[%emt 0:00:06]} (18. Qxe5+ Qxe5 19. Nxe5 Be6 $11) 18... f6 {[%emt 0:02:26]} 19. Nef3 {[%emt 0:00:20]} Nf4 {[%emt 0:04:05][%cal Oc8h3]} 20. e5 $40 {[%emt 0:16:27][%mdl 128] White attacks.} Qg7 {[%emt 0:07:27]} ({Black should play} 20... Nd5 $14 21. Qb3 Bb7) 21. exf6 $16 {[%emt 0:07:12]} Qxf6 {[%emt 0:00:16]} 22. Qxf6+ {[%emt 0:05:04]} Rxf6 {[%emt 0:00:05]} 23. Re8+ {[%emt 0:00:04]} Kg7 {[%emt 0:00:04]} 24. Rae1 {[%emt 0:03:22]} h6 {[%emt 0:04:02] Prevents Ng5.} 25. Nc4 {[%emt 0:01:53] [#] And now R1e7+ would win.} (25. R1e7+ Rf7 $16) 25... Nd5 {[%emt 0:04:02] Prevents R1e7+.} (25... Rf8 $16 26. R1e7+ (26. Nxb6 Rb8 $16) 26... Kg8) 26. Rd8 $18 {[%emt 0:08:14] White is clearly winning.} b5 {[%emt 0:04:54]} 27. Nd6 {[%emt 0:02:43] Ne8+ is the strong threat.} ({Weaker is} 27. Rxd5 bxc4 28. Ne5 (28. Rxc5 Bxh3 29. Re7+ Kg8 $16) 28... Be6 29. Rxc5 Rc8 30. Rxc8 Bxc8 31. Nxc4 Rc6 $18) 27... Rf8 {[%emt 0:02:55]} 28. Rxf8 {[%emt 0:01:15] Weighted Error Value: White=0.04 (flawless) /Black=0.35} ({Not} 28. Rxc8 Raxc8 29. Nxc8 Rxc8 $14) 1-0

[Event "26th Hit Open-A 2022"]
[Site "Nova Gorica"]
[Date "2022.09.18"]
[Round "5.29"]
[White "Marchesich, Giovanni"]
[Black "Ivsek, Cveto"]
[Result "1-0"]
[ECO "B32"]
[WhiteElo "2189"]
[BlackElo "1763"]
[Annotator "TA"]
[PlyCount "35"]
[EventDate "2022.09.16"]
[EventType "swiss"]
[EventCountry "SLO"]
[SourceTitle "playchess.com"]
[Source "ChessBase"]
[SourceQuality "1"]
[TimeControl "5400+30"]

{[%evp 17,35,43,58,15,47,21,117,15,8,0,77,40,186,176,1483,1515,1548,1520,1648,1611]} 1. e4 {[%emt 2:54:44]} c5 {[%emt 0:00:11]} 2. Nf3 {[%emt 0:00:27]} Nc6 {[%emt 0:00:22]} 3. d4 {[%emt 0:00:22]} cxd4 {[%emt 0:00:18]} 4. Nxd4 {[%emt 0:00:02]} e5 {[%emt 0:01:53]} 5. Nb5 {[%emt 0:00:29]} a6 {[%emt 0:01:28]} 6. Nd6+ {[%emt 0:00:30]} Bxd6 {[%emt 0:00:16]} 7. Qxd6 {[%emt 0:00:02]} Qe7 {[%emt 0:01:48]} 8. Qd1 {[%emt 0:03:51] 8.Qxe7+ is more advanced technology.} Nf6 {[%emt 0:02:19]} 9. Nc3 {[%emt 0:01:09]} h6 {[%emt 0:01:16]} 10. Bd3 {[%emt 0:04:58] B32: Sicilian: Löwenthal and Kalashnikov Variations.} O-O {[%emt 0:01:24]} 11. O-O {[%emt 0:01:46] [#]} Rd8 $146 {[%emt 0:10:38]} (11... d6 $11) ({Predecessor:} 11... d6 12. f4 Bg4 13. Qe1 Rad8 14. Qh4 d5 15. exd5 Nb4 16. Kh1 Nxd3 17. cxd3 Rfe8 {1-0 (37) Camino Carrio,N (2015)-Segura Acosta,R (1187) Gran Canaria 2020}) 12. Kh1 {[%emt 0:08:09]} (12. Nd5 $16 Qd6 13. c4) 12... d6 $11 {[%emt 0:11:35]} 13. f4 {[%emt 0:00:45]} Nd4 {[%emt 0:11:41]} (13... exf4 $11 {keeps the balance.} 14. Bxf4 Be6) 14. Qe1 {[%emt 0:06:50]} Kh7 {[%emt 0:02:54] Black cannot hold the game after this.} ({Black should try} 14... exf4 $14 15. Bxf4 Nc6) 15. Qh4 $18 {[%emt 0:01:55] [#] Strongly threatening Nd5.} Kg6 $2 {[%emt 0:10:13]} (15... Nc6 16. fxe5 Ng4 17. Qxe7 Nxe7) 16. Nd5 {[%emt 0:03:27] White is clearly winning.} Nxd5 {[%emt 0:01:48]} 17. exd5+ {[%emt 0:00:11]} e4 {[%emt 0:00:34]} 18. Qxe7 {[%emt 0:00:11] Weighted Error Value: White=0.34/Black=0.74} 1-0

[Event "26th Hit Open-A 2022"]
[Site "Nova Gorica"]
[Date "2022.09.18"]
[Round "5.30"]
[White "Schloffer, Jasmin-Denise"]
[Black "Vicic, Mark"]
[Result "1-0"]
[ECO "D13"]
[WhiteElo "2127"]
[BlackElo "1641"]
[Annotator "TA"]
[PlyCount "47"]
[EventDate "2022.09.16"]
[EventType "swiss"]
[EventCountry "SLO"]
[SourceTitle "playchess.com"]
[Source "ChessBase"]
[SourceQuality "1"]
[TimeControl "5400+30"]

{[%evp 13,47,13,18,0,0,0,14,0,7,0,0,-7,-6,-14,11,14,113,113,122,110,120,118,172,168,444,455,541,530,676,644,640,655,652,647,619,633]} 1. d4 {[%emt 0:00:03]} d5 {[%emt 0:02:08]} 2. c4 {[%emt 0:00:07]} c6 {[%emt 0:00:46]} 3. cxd5 {[%emt 0:00:05]} cxd5 {[%emt 0:00:01]} 4. Nc3 {[%emt 0:00:11]} Nc6 {[%emt 0:00:04]} 5. Bf4 {[%emt 0:00:08]} Nf6 {[%emt 0:00:24]} 6. Nf3 {[%emt 0:00:04]} a6 {[%emt 0:00:13]} 7. Rc1 $1 {[%emt 0:00:17][%mdl 4] is now more promising than 7.e3.} Bf5 {[%emt 0:00:21]} 8. Qa4 {[%emt 0:01:34] D13: Slav Defence: Exchange variation without ...Bf5.} b5 {[%emt 0:01:36]} 9. Qd1 {[%emt 0:00:12]} e6 {[%emt 0:01:50]} 10. e3 {[%emt 0:00:40] The position is equal.} Bd6 {[%emt 0:01:46]} 11. Bg5 {[%emt 0:03:14]} Rc8 {[%emt 0:04:25]} 12. Be2 {[%emt 0:01:36] [#]} O-O $146 {[%emt 0:02:15]} ({Predecessor:} 12... h6 13. Bh4 O-O 14. O-O Be7 15. Nd2 Na5 16. g4 Bh7 17. Kh1 Nc4 18. Nxc4 bxc4 {0-1 (61) Caceres Salas,E (1757)-Castro Salgado,P (1838) Quirihue 2022}) 13. O-O {[%emt 0:00:36]} Rc7 {[%emt 0:09:53]} (13... h6 $5 {[%cal Rh6g5]} 14. Bh4 g5 $11) 14. Nh4 {[%emt 0:03:12]} h6 {[%emt 0:05:44]} (14... Bg6 $11 {remains equal.}) 15. Nxf5 $16 {[%emt 0:01:03] Strongly threatening Bxf6.} hxg5 {[%emt 0:03:30]} 16. Nxd6 {[%emt 0:05:02]} Qxd6 {[%emt 0:00:05] [#]} 17. Bxb5 $1 {[%emt 0:00:24]} Nb4 {[%emt 0:08:36]} (17... axb5 $2 18. Nxb5 Qe7 19. Nxc7 Qxc7 20. Qa4 $18) (17... Rb8 $16) 18. Be2 $18 {[%emt 0:01:03]} Rfc8 $2 {[%emt 0:00:43]} (18... Nc6 19. Qd3 (19. Bxa6 Nxd4 20. Bd3 Nf5 $18) 19... Ra8) 19. a3 {[%emt 0:00:24][%cal Ba2a3,Ba3b4][%mdl 32] White is clearly winning.} Ne4 {[%emt 0:11:32]} 20. Nxe4 {[%emt 0:08:25]} Rxc1 {[%emt 0:02:38]} 21. Nxd6 {[%emt 0:00:29]} Rxd1 {[%emt 0:00:41]} 22. Rxd1 {[%emt 0:02:23]} Rc2 {[%emt 0:00:11]} 23. axb4 {[%emt 0:00:16]} Rxe2 {[%emt 0:00:01]} 24. Rb1 {[%emt 0:00:11] Weighted Error Value: White=0.02 (flawless) /Black=0.55} 1-0